[Event "Titled Tuesday Blitz November 08 Early 2022"]
[White "Osmonbekov, Talaibek"]
[Black "Velikanov, Alexander"]
[WhiteFideId "2017253"]
[BlackFideId "2039290"]
[WhiteElo "2135"]
[BlackElo "2259"]
[Result "0-1"]
[Round "01"]
[TimeControl "180+1"]
[Date "2022.11.09"]
[WhiteClock "0:00:01"]
[BlackClock "0:00:06"]

1. d4 {[%clk 0:02:56]}  Nf6 {[%clk 0:02:59]} 2. Bf4 {[%clk 0:02:54]}  c5 {[%clk 0:02:56]} 3. d5 {[%clk 0:02:53]}  d6 {[%clk 0:02:53]} 4. Nc3 {[%clk 0:02:51]}  Qa5 {[%clk 0:02:47]} 5. Qd3 {[%clk 0:02:25]}  g6 {[%clk 0:02:29]} 6. e4 {[%clk 0:02:05]}  a6 {[%clk 0:02:16]} 7. Nf3 {[%clk 0:01:45]}  Bg7 {[%clk 0:02:15]} 8. e5 {[%clk 0:01:44]}  dxe5 {[%clk 0:02:04]} 9. Bxe5 {[%clk 0:01:41]}  Bf5 {[%clk 0:02:03]} 10. Qd2 {[%clk 0:01:41]}  Nbd7 {[%clk 0:02:01]} 11. Bd3 {[%clk 0:01:29]}  Nxe5 {[%clk 0:01:33]} 12. Nxe5 {[%clk 0:01:28]}  Bxd3 {[%clk 0:01:32]} 13. Qxd3 {[%clk 0:01:16]}  Rd8 {[%clk 0:01:30]} 14. O-O {[%clk 0:01:13]}  O-O {[%clk 0:01:29]} 15. Rad1 {[%clk 0:01:12]}  Qc7 {[%clk 0:01:18]} 16. Rfe1 {[%clk 0:01:07]}  Rfe8 {[%clk 0:01:14]} 17. a4 {[%clk 0:01:05]}  Nh5 {[%clk 0:00:57]} 18. Nc4 {[%clk 0:00:55]}  Nf4 {[%clk 0:00:53]} 19. d6 {[%clk 0:00:39]}  exd6 {[%clk 0:00:29]} 20. Qg3 {[%clk 0:00:15]}  Bxc3 {[%clk 0:00:21]} 21. Rxe8+ {[%clk 0:00:13]}  Rxe8 {[%clk 0:00:21]} 22. Qxf4 {[%clk 0:00:14]}  Be5 {[%clk 0:00:21]} 23. Qf3 {[%clk 0:00:08]}  Re6 {[%clk 0:00:20]} 24. b3 {[%clk 0:00:08]}  Bd4 {[%clk 0:00:18]} 25. c3 {[%clk 0:00:07]}  Qe7 {[%clk 0:00:13]} 26. g3 {[%clk 0:00:05]}  Bf6 {[%clk 0:00:08]} 27. Ne3 {[%clk 0:00:04]}  Bxc3 {[%clk 0:00:06]} 28. Nd5 {[%clk 0:00:04]}  Re1+ {[%clk 0:00:07]} 29. Kg2 {[%clk 0:00:04]}  Qe4 {[%clk 0:00:04]} 30. Qxe4 {[%clk 0:00:03]}  Rxe4 {[%clk 0:00:05]} 31. Nxc3 {[%clk 0:00:04]}  Rb4 {[%clk 0:00:06]} 32. Rxd6 {[%clk 0:00:03]}  Rxb3 {[%clk 0:00:07]} 33. Nd5 {[%clk 0:00:03]}  Kg7 {[%clk 0:00:06]} 34. Nb6 {[%clk 0:00:03]}  Ra3 {[%clk 0:00:05]} 35. Rd5 {[%clk 0:00:01]}  Rb3 {[%clk 0:00:06]} 36. a5 {[%clk 0:00:01]}  Rb5 {[%clk 0:00:05]} 37. Nc4 {[%clk 0:00:01]}  Kf6 {[%clk 0:00:05]} 38. Kf3 {[%clk 0:00:01]}  Ke6 {[%clk 0:00:06]} 0-1


[Site "https://www.chess.com"]

[Event "Titled Tuesday Blitz November 08 Early 2022"]
[White "Pajeken, Jakob Leon"]
[Black "Ivic, Velimir"]
[WhiteFideId "12942839"]
[BlackFideId "950122"]
[WhiteElo "2429"]
[BlackElo "2625"]
[Result "1/2-1/2"]
[Round "01"]
[TimeControl "180+1"]
[Date "2022.11.09"]
[WhiteClock "0:00:16"]
[BlackClock "0:00:40"]

1. d4 {[%clk 0:03:00]}  Nf6 {[%clk 0:03:00]} 2. Nf3 {[%clk 0:03:01]}  g6 {[%clk 0:03:00]} 3. g3 {[%clk 0:03:01]}  Bg7 {[%clk 0:03:01]} 4. Bg2 {[%clk 0:03:02]}  O-O {[%clk 0:03:02]} 5. O-O {[%clk 0:03:02]}  d6 {[%clk 0:03:03]} 6. c4 {[%clk 0:03:03]}  c6 {[%clk 0:03:03]} 7. Qc2 {[%clk 0:03:01]}  Bf5 {[%clk 0:03:03]} 8. Qb3 {[%clk 0:03:01]}  Qc7 {[%clk 0:03:03]} 9. Nc3 {[%clk 0:03:00]}  Ne4 {[%clk 0:03:02]} 10. Nh4 {[%clk 0:02:50]}  Nxc3 {[%clk 0:03:02]} 11. Qxc3 {[%clk 0:02:51]}  Bg4 {[%clk 0:02:58]} 12. h3 {[%clk 0:02:43]}  Bc8 {[%clk 0:02:56]} 13. e4 {[%clk 0:02:40]}  c5 {[%clk 0:02:55]} 14. Nf3 {[%clk 0:02:38]}  cxd4 {[%clk 0:02:50]} 15. Nxd4 {[%clk 0:02:39]}  Nc6 {[%clk 0:02:50]} 16. Be3 {[%clk 0:02:37]}  Be6 {[%clk 0:02:45]} 17. Rac1 {[%clk 0:02:27]}  Nxd4 {[%clk 0:02:41]} 18. Bxd4 {[%clk 0:02:28]}  Bxd4 {[%clk 0:02:41]} 19. Qxd4 {[%clk 0:02:28]}  Rfc8 {[%clk 0:02:42]} 20. Rc3 {[%clk 0:02:22]}  Rab8 {[%clk 0:02:27]} 21. Rfc1 {[%clk 0:02:19]}  Qc5 {[%clk 0:02:27]} 22. Qd2 {[%clk 0:02:05]}  a6 {[%clk 0:02:14]} 23. a3 {[%clk 0:02:04]}  a5 {[%clk 0:02:14]} 24. Kh2 {[%clk 0:01:59]}  a4 {[%clk 0:02:12]} 25. f4 {[%clk 0:01:58]}  f6 {[%clk 0:02:11]} 26. Qd1 {[%clk 0:01:51]}  Qa5 {[%clk 0:02:09]} 27. f5 {[%clk 0:01:41]}  Bf7 {[%clk 0:02:09]} 28. fxg6 {[%clk 0:01:40]}  hxg6 {[%clk 0:02:09]} 29. Qg4 {[%clk 0:01:37]}  Kg7 {[%clk 0:02:08]} 30. Qd7 {[%clk 0:01:31]}  Rc7 {[%clk 0:02:06]} 31. Qb5 {[%clk 0:01:32]}  Rc5 {[%clk 0:02:05]} 32. Qd7 {[%clk 0:01:29]}  Rc7 {[%clk 0:01:58]} 33. Qb5 {[%clk 0:01:29]}  Ra8 {[%clk 0:01:58]} 34. Bf1 {[%clk 0:01:19]}  Be8 {[%clk 0:01:57]} 35. Qb4 {[%clk 0:01:14]}  Qc5 {[%clk 0:01:55]} 36. Bg2 {[%clk 0:01:12]}  Ra5 {[%clk 0:01:53]} 37. Rd3 {[%clk 0:01:04]}  Bf7 {[%clk 0:01:50]} 38. Rdc3 {[%clk 0:00:57]}  Be6 {[%clk 0:01:43]} 39. Bf3 {[%clk 0:00:55]}  Qe5 {[%clk 0:01:39]} 40. R1c2 {[%clk 0:00:49]}  Bd7 {[%clk 0:01:35]} 41. Bg2 {[%clk 0:00:41]}  Rac5 {[%clk 0:01:32]} 42. Qb6 {[%clk 0:00:40]}  Bc6 {[%clk 0:01:27]} 43. Qxc7 {[%clk 0:00:36]}  Bxe4 {[%clk 0:01:28]} 44. Qd7 {[%clk 0:00:30]}  Bf5 {[%clk 0:01:26]} 45. Qe8 {[%clk 0:00:29]}  Rc8 {[%clk 0:01:17]} 46. Qxa4 {[%clk 0:00:28]}  Bxc2 {[%clk 0:01:16]} 47. Qxc2 {[%clk 0:00:29]}  Rc7 {[%clk 0:01:14]} 48. b4 {[%clk 0:00:29]}  f5 {[%clk 0:01:13]} 49. c5 {[%clk 0:00:29]}  d5 {[%clk 0:01:13]} 50. Qd3 {[%clk 0:00:25]}  e6 {[%clk 0:01:13]} 51. b5 {[%clk 0:00:24]}  f4 {[%clk 0:01:11]} 52. gxf4 {[%clk 0:00:21]}  Qf6 {[%clk 0:01:11]} 53. Rc2 {[%clk 0:00:18]}  Rf7 {[%clk 0:01:08]} 54. Qe3 {[%clk 0:00:19]}  g5 {[%clk 0:00:59]} 55. Qe5 {[%clk 0:00:17]}  gxf4 {[%clk 0:00:58]} 56. Qxf6+ {[%clk 0:00:18]}  Kxf6 {[%clk 0:00:59]} 57. a4 {[%clk 0:00:15]}  Ke5 {[%clk 0:00:59]} 58. a5 {[%clk 0:00:15]}  f3 {[%clk 0:00:59]} 59. Bf1 {[%clk 0:00:13]}  Kf4 {[%clk 0:00:59]} 60. c6 {[%clk 0:00:14]}  bxc6 {[%clk 0:01:00]} 61. bxc6 {[%clk 0:00:14]}  Rc7 {[%clk 0:00:57]} 62. a6 {[%clk 0:00:15]}  e5 {[%clk 0:00:45]} 63. a7 {[%clk 0:00:15]}  Rxa7 {[%clk 0:00:46]} 64. c7 {[%clk 0:00:16]}  Ra8 {[%clk 0:00:46]} 65. c8=Q {[%clk 0:00:15]}  Rxc8 {[%clk 0:00:46]} 66. Rxc8 {[%clk 0:00:16]}  e4 {[%clk 0:00:47]} 67. Rf8+ {[%clk 0:00:16]}  Ke3 {[%clk 0:00:47]} 68. Kg3 {[%clk 0:00:17]}  d4 {[%clk 0:00:48]} 69. Bb5 {[%clk 0:00:16]}  d3 {[%clk 0:00:48]} 70. Bc6 {[%clk 0:00:15]}  d2 {[%clk 0:00:48]} 71. Rd8 {[%clk 0:00:16]}  f2 {[%clk 0:00:48]} 72. Bb5 {[%clk 0:00:16]}  f1=Q {[%clk 0:00:39]} 73. Bxf1 {[%clk 0:00:16]}  d1=Q {[%clk 0:00:40]} 74. Rxd1 {[%clk 0:00:16]} 1/2-1/2


[Site "https://www.chess.com"]

[Event "Titled Tuesday Blitz November 08 Early 2022"]
[White "Pakleza, Zbigniew"]
[Black "Szente Varga, Fruzsina"]
[WhiteFideId "1119290"]
[BlackFideId "712264"]
[WhiteElo "2411"]
[BlackElo "1994"]
[Result "1-0"]
[Round "01"]
[TimeControl "180+1"]
[Date "2022.11.09"]
[WhiteClock "0:00:31"]
[BlackClock "0:00:10"]

1. d4 {[%clk 0:03:00]}  Nf6 {[%clk 0:02:59]} 2. Nf3 {[%clk 0:03:01]}  g6 {[%clk 0:03:00]} 3. Bf4 {[%clk 0:03:01]}  Bg7 {[%clk 0:03:00]} 4. e3 {[%clk 0:03:02]}  O-O {[%clk 0:02:59]} 5. Be2 {[%clk 0:03:02]}  d5 {[%clk 0:02:59]} 6. O-O {[%clk 0:03:01]}  c5 {[%clk 0:02:45]} 7. c3 {[%clk 0:03:01]}  Nc6 {[%clk 0:02:44]} 8. Nbd2 {[%clk 0:02:59]}  c4 {[%clk 0:02:42]} 9. b3 {[%clk 0:02:55]}  b5 {[%clk 0:02:41]} 10. a4 {[%clk 0:02:48]}  Ba6 {[%clk 0:02:05]} 11. axb5 {[%clk 0:02:44]}  Bxb5 {[%clk 0:02:06]} 12. bxc4 {[%clk 0:02:19]}  Bxc4 {[%clk 0:02:02]} 13. Nxc4 {[%clk 0:02:15]}  dxc4 {[%clk 0:01:59]} 14. Bxc4 {[%clk 0:02:16]}  Rc8 {[%clk 0:01:59]} 15. Ba6 {[%clk 0:02:14]}  Ne4 {[%clk 0:01:54]} 16. Bxc8 {[%clk 0:02:07]}  Qxc8 {[%clk 0:01:55]} 17. Qd3 {[%clk 0:02:01]}  f5 {[%clk 0:01:39]} 18. Rfc1 {[%clk 0:01:56]}  Rd8 {[%clk 0:01:36]} 19. Qa6 {[%clk 0:01:47]}  Qd7 {[%clk 0:01:29]} 20. h3 {[%clk 0:01:45]}  h6 {[%clk 0:01:21]} 21. Qc4+ {[%clk 0:01:34]}  Kh7 {[%clk 0:01:19]} 22. Ra6 {[%clk 0:01:32]}  Rc8 {[%clk 0:01:17]} 23. Qa4 {[%clk 0:01:24]}  g5 {[%clk 0:01:09]} 24. Bh2 {[%clk 0:01:19]}  g4 {[%clk 0:01:01]} 25. hxg4 {[%clk 0:00:50]}  fxg4 {[%clk 0:01:01]} 26. Nd2 {[%clk 0:00:36]}  Ng5 {[%clk 0:00:31]} 27. c4 {[%clk 0:00:33]}  Kh8 {[%clk 0:00:12]} 28. d5 {[%clk 0:00:30]}  Ne5 {[%clk 0:00:12]} 29. Bxe5 {[%clk 0:00:30]}  Qxa4 {[%clk 0:00:10]} 30. Bxg7+ {[%clk 0:00:30]}  Kxg7 {[%clk 0:00:10]} 31. Rxa4 {[%clk 0:00:31]} 1-0


[Site "https://www.chess.com"]

[Event "Titled Tuesday Blitz November 08 Early 2022"]
[White "Papp, Levente"]
[Black "Goh, Zi Han"]
[WhiteFideId "751243"]
[BlackFideId "5819156"]
[WhiteElo "2380"]
[BlackElo "2026"]
[Result "1-0"]
[Round "01"]
[TimeControl "180+1"]
[Date "2022.11.09"]
[WhiteClock "0:00:04"]
[BlackClock "0:00:30"]

1. d4 {[%clk 0:03:00]}  Nf6 {[%clk 0:02:58]} 2. Nc3 {[%clk 0:03:00]}  d5 {[%clk 0:02:55]} 3. Bg5 {[%clk 0:03:00]}  e6 {[%clk 0:02:49]} 4. e4 {[%clk 0:02:58]}  dxe4 {[%clk 0:02:44]} 5. Nxe4 {[%clk 0:02:58]}  Be7 {[%clk 0:02:44]} 6. Nxf6+ {[%clk 0:02:58]}  Bxf6 {[%clk 0:02:44]} 7. Bxf6 {[%clk 0:02:58]}  Qxf6 {[%clk 0:02:44]} 8. Nf3 {[%clk 0:02:59]}  O-O {[%clk 0:02:40]} 9. Bd3 {[%clk 0:02:57]}  b6 {[%clk 0:02:39]} 10. O-O {[%clk 0:02:55]}  Bb7 {[%clk 0:02:39]} 11. Ne5 {[%clk 0:02:46]}  Rd8 {[%clk 0:02:30]} 12. Qh5 {[%clk 0:02:10]}  g6 {[%clk 0:02:27]} 13. Qg4 {[%clk 0:02:03]}  Nc6 {[%clk 0:02:06]} 14. Nxc6 {[%clk 0:01:28]}  Bxc6 {[%clk 0:02:06]} 15. c3 {[%clk 0:01:29]}  Bb7 {[%clk 0:01:54]} 16. Rad1 {[%clk 0:01:26]}  Rac8 {[%clk 0:01:53]} 17. Be4 {[%clk 0:01:21]}  Bxe4 {[%clk 0:01:47]} 18. Qxe4 {[%clk 0:01:22]}  Qe7 {[%clk 0:01:30]} 19. d5 {[%clk 0:01:19]}  Rd6 {[%clk 0:01:22]} 20. dxe6 {[%clk 0:01:07]}  Rxe6 {[%clk 0:01:23]} 21. Qb7 {[%clk 0:01:06]}  Rd8 {[%clk 0:01:08]} 22. Rxd8+ {[%clk 0:00:59]}  Qxd8 {[%clk 0:01:08]} 23. Qxa7 {[%clk 0:01:00]}  Re2 {[%clk 0:01:07]} 24. b3 {[%clk 0:00:52]}  Qd2 {[%clk 0:00:57]} 25. Qxc7 {[%clk 0:00:50]}  Re1 {[%clk 0:00:41]} 26. g3 {[%clk 0:00:33]}  Rxf1+ {[%clk 0:00:40]} 27. Kxf1 {[%clk 0:00:33]}  Qxa2 {[%clk 0:00:41]} 28. Qxb6 {[%clk 0:00:29]}  Qa1+ {[%clk 0:00:41]} 29. Kg2 {[%clk 0:00:27]}  Qxc3 {[%clk 0:00:42]} 30. Qe3 {[%clk 0:00:26]}  Qc6+ {[%clk 0:00:41]} 31. Qf3 {[%clk 0:00:26]}  Qb5 {[%clk 0:00:41]} 32. h4 {[%clk 0:00:23]}  h5 {[%clk 0:00:41]} 33. Qc3 {[%clk 0:00:21]}  Qd5+ {[%clk 0:00:39]} 34. f3 {[%clk 0:00:21]}  Qd1 {[%clk 0:00:36]} 35. Qe3 {[%clk 0:00:15]}  Qc2+ {[%clk 0:00:35]} 36. Kh3 {[%clk 0:00:15]}  Kh7 {[%clk 0:00:33]} 37. b4 {[%clk 0:00:12]}  Qb1 {[%clk 0:00:33]} 38. Qd2 {[%clk 0:00:05]}  Qh1+ {[%clk 0:00:32]} 39. Qh2 {[%clk 0:00:05]}  Qxf3 {[%clk 0:00:33]} 40. Qg2 {[%clk 0:00:03]}  Qg4+ {[%clk 0:00:30]} 41. Kh2 {[%clk 0:00:03]}  Qxb4 {[%clk 0:00:31]} 42. Qd5 {[%clk 0:00:03]}  Qb2+ {[%clk 0:00:30]} 43. Kh3 {[%clk 0:00:03]}  Qf6 {[%clk 0:00:31]} 44. Kh2 {[%clk 0:00:03]}  Kg7 {[%clk 0:00:31]} 45. Qg2 {[%clk 0:00:02]}  Qf5 {[%clk 0:00:31]} 46. Qe2 {[%clk 0:00:02]}  Qg4 {[%clk 0:00:30]} 47. Qg2 {[%clk 0:00:02]}  Qf4 {[%clk 0:00:30]} 48. gxf4 {[%clk 0:00:02]}  Kf6 {[%clk 0:00:30]} 49. Kg3 {[%clk 0:00:03]}  Kf5 {[%clk 0:00:30]} 50. Qd5+ {[%clk 0:00:03]}  Kf6 {[%clk 0:00:30]} 51. Qe5# {[%clk 0:00:04]} 1-0


[Site "https://www.chess.com"]

[Event "Titled Tuesday Blitz November 08 Early 2022"]
[White "Paszewski, Mateusz"]
[Black "Zaksaite, Salomeja"]
[WhiteFideId "1141058"]
[BlackFideId "12801496"]
[WhiteElo "2263"]
[BlackElo "2079"]
[Result "1-0"]
[Round "01"]
[TimeControl "180+1"]
[Date "2022.11.09"]
[WhiteClock "0:01:52"]
[BlackClock "0:00:01"]

1. Nf3 {[%clk 0:03:00]}  Nf6 {[%clk 0:02:59]} 2. g3 {[%clk 0:03:01]}  g6 {[%clk 0:02:59]} 3. b3 {[%clk 0:03:01]}  Bg7 {[%clk 0:02:56]} 4. Bb2 {[%clk 0:03:01]}  d6 {[%clk 0:02:55]} 5. d4 {[%clk 0:03:02]}  O-O {[%clk 0:02:54]} 6. Bg2 {[%clk 0:03:02]}  Nbd7 {[%clk 0:02:54]} 7. O-O {[%clk 0:03:01]}  e5 {[%clk 0:02:54]} 8. dxe5 {[%clk 0:03:02]}  Ng4 {[%clk 0:02:51]} 9. Qd2 {[%clk 0:03:03]}  Ngxe5 {[%clk 0:02:47]} 10. Nxe5 {[%clk 0:03:03]}  Nxe5 {[%clk 0:02:46]} 11. c4 {[%clk 0:03:02]}  c6 {[%clk 0:02:38]} 12. Nc3 {[%clk 0:03:00]}  Qc7 {[%clk 0:02:28]} 13. Rfd1 {[%clk 0:02:58]}  Rd8 {[%clk 0:02:25]} 14. Rac1 {[%clk 0:02:58]}  Be6 {[%clk 0:02:18]} 15. h3 {[%clk 0:02:39]}  h5 {[%clk 0:02:06]} 16. Nd5 {[%clk 0:02:26]}  Qd7 {[%clk 0:01:23]} 17. Nf4 {[%clk 0:02:24]}  Bf5 {[%clk 0:01:19]} 18. Ba3 {[%clk 0:02:21]}  Bf8 {[%clk 0:01:12]} 19. Qa5 {[%clk 0:02:17]}  b6 {[%clk 0:00:54]} 20. Qa4 {[%clk 0:02:15]}  Qc7 {[%clk 0:00:52]} 21. Bb2 {[%clk 0:02:12]}  Bg7 {[%clk 0:00:44]} 22. Rd2 {[%clk 0:02:11]}  Rac8 {[%clk 0:00:28]} 23. Rcd1 {[%clk 0:02:10]}  Bh6 {[%clk 0:00:24]} 24. e3 {[%clk 0:02:07]}  Rd7 {[%clk 0:00:08]} 25. e4 {[%clk 0:02:01]}  Be6 {[%clk 0:00:06]} 26. Nxe6 {[%clk 0:02:01]}  fxe6 {[%clk 0:00:05]} 27. f4 {[%clk 0:01:55]}  Nf7 {[%clk 0:00:04]} 28. Qb4 {[%clk 0:01:53]}  Bg7 {[%clk 0:00:02]} 29. Bxg7 {[%clk 0:01:53]}  Kxg7 {[%clk 0:00:03]} 30. Qc3+ {[%clk 0:01:52]}  e5 {[%clk 0:00:02]} 31. fxe5 {[%clk 0:01:53]}  Nxe5 {[%clk 0:00:01]} 32. Qxe5+ {[%clk 0:01:52]}  dxe5 {[%clk 0:00:01]} 33. Rxd7+ {[%clk 0:01:53]}  Qxd7 {[%clk 0:00:01]} 34. Rxd7+ {[%clk 0:01:54]}  Kf6 {[%clk 0:00:01]} 35. Kf2 {[%clk 0:01:52]} 1-0


[Site "https://www.chess.com"]

[Event "Titled Tuesday Blitz November 08 Early 2022"]
[White "Pinero Rodriguez, Carlos Jose"]
[Black "Tarigan, Gilbert Elroy"]
[WhiteFideId "3901726"]
[BlackFideId "7108133"]
[WhiteElo "2146"]
[BlackElo "2284"]
[Result "0-1"]
[Round "01"]
[TimeControl "180+1"]
[Date "2022.11.09"]
[WhiteClock "0:00:20"]
[BlackClock "0:00:08"]

1. e4 {[%clk 0:02:59]}  Nc6 {[%clk 0:02:56]} 2. Nf3 {[%clk 0:02:57]}  d5 {[%clk 0:02:48]} 3. exd5 {[%clk 0:02:54]}  Qxd5 {[%clk 0:02:49]} 4. Nc3 {[%clk 0:02:55]}  Qh5 {[%clk 0:02:49]} 5. Be2 {[%clk 0:02:48]}  Bg4 {[%clk 0:02:48]} 6. d3 {[%clk 0:02:44]}  O-O-O {[%clk 0:02:48]} 7. h3 {[%clk 0:02:40]}  Nf6 {[%clk 0:02:48]} 8. Be3 {[%clk 0:02:34]}  e5 {[%clk 0:02:47]} 9. Nd2 {[%clk 0:02:31]}  Bxe2 {[%clk 0:02:43]} 10. Qxe2 {[%clk 0:02:32]}  Qxe2+ {[%clk 0:02:38]} 11. Nxe2 {[%clk 0:02:31]}  Nb4 {[%clk 0:02:32]} 12. Kd1 {[%clk 0:02:13]}  Nfd5 {[%clk 0:02:32]} 13. a3 {[%clk 0:02:11]}  Nxe3+ {[%clk 0:02:30]} 14. fxe3 {[%clk 0:02:12]}  Nd5 {[%clk 0:02:31]} 15. Nf1 {[%clk 0:02:10]}  Bc5 {[%clk 0:02:30]} 16. e4 {[%clk 0:02:10]}  Nf4 {[%clk 0:02:15]} 17. Nxf4 {[%clk 0:02:03]}  exf4 {[%clk 0:02:16]} 18. Ke2 {[%clk 0:02:03]}  Rhe8 {[%clk 0:02:03]} 19. Kf3 {[%clk 0:02:01]}  f5 {[%clk 0:01:51]} 20. exf5 {[%clk 0:02:00]}  Rd5 {[%clk 0:01:43]} 21. Rd1 {[%clk 0:01:43]}  Rxf5 {[%clk 0:01:41]} 22. d4 {[%clk 0:01:43]}  Bd6 {[%clk 0:01:37]} 23. c3 {[%clk 0:01:25]}  Rb5 {[%clk 0:01:35]} 24. b4 {[%clk 0:01:23]}  Rg5 {[%clk 0:01:28]} 25. h4 {[%clk 0:01:17]}  Rg6 {[%clk 0:01:22]} 26. Rh3 {[%clk 0:01:14]}  b5 {[%clk 0:01:21]} 27. Kf2 {[%clk 0:01:13]}  Rge6 {[%clk 0:01:20]} 28. Rd2 {[%clk 0:01:10]}  Re1 {[%clk 0:01:19]} 29. Ra2 {[%clk 0:00:57]}  Kd7 {[%clk 0:01:07]} 30. Rd3 {[%clk 0:00:46]}  Rc1 {[%clk 0:01:01]} 31. a4 {[%clk 0:00:27]}  a6 {[%clk 0:01:00]} 32. axb5 {[%clk 0:00:27]}  axb5 {[%clk 0:01:01]} 33. Re2 {[%clk 0:00:26]}  Be7 {[%clk 0:00:49]} 34. Rh3 {[%clk 0:00:20]}  Ra8 {[%clk 0:00:41]} 35. Nd2 {[%clk 0:00:19]}  Raa1 {[%clk 0:00:34]} 36. Kf3 {[%clk 0:00:17]}  Rxc3+ {[%clk 0:00:30]} 37. Ke4 {[%clk 0:00:17]}  Rxh3 {[%clk 0:00:27]} 38. gxh3 {[%clk 0:00:18]}  Ra2 {[%clk 0:00:26]} 39. Kd3 {[%clk 0:00:16]}  Bxb4 {[%clk 0:00:26]} 40. Nf3 {[%clk 0:00:15]}  Rxe2 {[%clk 0:00:25]} 41. Kxe2 {[%clk 0:00:16]}  Bd6 {[%clk 0:00:22]} 42. Kd3 {[%clk 0:00:16]}  Kc6 {[%clk 0:00:13]} 43. Ke4 {[%clk 0:00:16]}  b4 {[%clk 0:00:13]} 44. Nd2 {[%clk 0:00:16]}  Kb5 {[%clk 0:00:13]} 45. Kd3 {[%clk 0:00:16]}  Ka4 {[%clk 0:00:12]} 46. Kc2 {[%clk 0:00:16]}  h5 {[%clk 0:00:10]} 47. Ne4 {[%clk 0:00:15]}  f3 {[%clk 0:00:09]} 48. Kd3 {[%clk 0:00:14]}  b3 {[%clk 0:00:09]} 49. Ke3 {[%clk 0:00:12]}  b2 {[%clk 0:00:09]} 50. Kxf3 {[%clk 0:00:12]}  Kb3 {[%clk 0:00:06]} 51. Nd2+ {[%clk 0:00:12]}  Kc2 {[%clk 0:00:06]} 52. Ke2 {[%clk 0:00:12]}  Bb4 {[%clk 0:00:04]} 53. Nc4 {[%clk 0:00:11]}  b1=Q {[%clk 0:00:04]} 54. Ne3+ {[%clk 0:00:12]}  Kc3 {[%clk 0:00:04]} 55. d5 {[%clk 0:00:13]}  Qd3+ {[%clk 0:00:04]} 56. Kf3 {[%clk 0:00:14]}  Bc5 {[%clk 0:00:04]} 57. Kf4 {[%clk 0:00:14]}  Qxe3+ {[%clk 0:00:05]} 58. Kf5 {[%clk 0:00:15]}  Qd3+ {[%clk 0:00:05]} 59. Kg5 {[%clk 0:00:15]}  Qxd5+ {[%clk 0:00:05]} 60. Kg6 {[%clk 0:00:16]}  Bd4 {[%clk 0:00:06]} 61. Kh7 {[%clk 0:00:17]}  c5 {[%clk 0:00:04]} 62. Kh8 {[%clk 0:00:16]}  Kd3 {[%clk 0:00:04]} 63. Kh7 {[%clk 0:00:17]}  c4 {[%clk 0:00:05]} 64. Kg6 {[%clk 0:00:18]}  c3 {[%clk 0:00:06]} 65. Kh7 {[%clk 0:00:18]}  c2 {[%clk 0:00:07]} 66. Kh8 {[%clk 0:00:19]}  Ke4 {[%clk 0:00:07]} 67. Kh7 {[%clk 0:00:20]}  c1=Q {[%clk 0:00:07]} 68. Kg6 {[%clk 0:00:20]}  Qcc6+ {[%clk 0:00:07]} 69. Kh7 {[%clk 0:00:20]}  Qf5+ {[%clk 0:00:08]} 70. Kh8 {[%clk 0:00:20]}  Qe8# {[%clk 0:00:08]} 0-1


[Site "https://www.chess.com"]

[Event "Titled Tuesday Blitz November 08 Early 2022"]
[White "Pinheiro, Iung Alicio de O."]
[Black "Sailer, Mike"]
[WhiteFideId "2104350"]
[BlackFideId "2012901"]
[WhiteElo "2283"]
[BlackElo "2109"]
[Result "1-0"]
[Round "01"]
[TimeControl "180+1"]
[Date "2022.11.09"]
[WhiteClock "0:00:41"]
[BlackClock "0:01:17"]

1. e4 {[%clk 0:02:59]}  d5 {[%clk 0:02:57]} 2. exd5 {[%clk 0:02:58]}  Qxd5 {[%clk 0:02:56]} 3. Nc3 {[%clk 0:02:58]}  Qd6 {[%clk 0:02:57]} 4. d4 {[%clk 0:02:53]}  Nf6 {[%clk 0:02:58]} 5. Nf3 {[%clk 0:02:53]}  c6 {[%clk 0:02:58]} 6. Ne5 {[%clk 0:02:52]}  Nbd7 {[%clk 0:02:56]} 7. f4 {[%clk 0:02:51]}  g6 {[%clk 0:02:49]} 8. g4 {[%clk 0:02:46]}  Bg7 {[%clk 0:02:47]} 9. g5 {[%clk 0:02:41]}  Ng8 {[%clk 0:02:30]} 10. Bc4 {[%clk 0:02:35]}  Nxe5 {[%clk 0:02:26]} 11. fxe5 {[%clk 0:02:20]}  Qb4 {[%clk 0:02:23]} 12. Bb3 {[%clk 0:02:04]}  Bf5 {[%clk 0:02:18]} 13. Be3 {[%clk 0:02:03]}  e6 {[%clk 0:02:16]} 14. a3 {[%clk 0:01:59]}  Qa5 {[%clk 0:02:16]} 15. Qf3 {[%clk 0:01:42]}  Ne7 {[%clk 0:02:13]} 16. O-O-O {[%clk 0:01:42]}  O-O-O {[%clk 0:02:13]} 17. h4 {[%clk 0:01:38]}  h5 {[%clk 0:02:08]} 18. gxh6 {[%clk 0:01:26]}  Bxh6 {[%clk 0:02:07]} 19. Bxh6 {[%clk 0:01:21]}  Rxh6 {[%clk 0:02:07]} 20. h5 {[%clk 0:01:22]}  gxh5 {[%clk 0:01:51]} 21. Rxh5 {[%clk 0:01:21]}  Rxh5 {[%clk 0:01:51]} 22. Qxh5 {[%clk 0:01:22]}  Bg6 {[%clk 0:01:52]} 23. Qg5 {[%clk 0:01:21]}  Qb6 {[%clk 0:01:28]} 24. Qxe7 {[%clk 0:01:18]}  Rxd4 {[%clk 0:01:28]} 25. Bxe6+ {[%clk 0:00:42]}  fxe6 {[%clk 0:01:22]} 26. Qxe6+ {[%clk 0:00:43]}  Kc7 {[%clk 0:01:18]} 27. Qxg6 {[%clk 0:00:41]}  Rxd1+ {[%clk 0:01:18]} 28. Nxd1 {[%clk 0:00:42]}  Qd4 {[%clk 0:01:17]} 29. Qd6+ {[%clk 0:00:40]}  Qxd6 {[%clk 0:01:16]} 30. exd6+ {[%clk 0:00:41]}  Kxd6 {[%clk 0:01:17]} 31. Kd2 {[%clk 0:00:41]} 1-0


[Site "https://www.chess.com"]

[Event "Titled Tuesday Blitz November 08 Early 2022"]
[White "Pranav, V"]
[Black "Jaskolka, Tomasz"]
[WhiteFideId "25060783"]
[BlackFideId "1170791"]
[WhiteElo "2430"]
[BlackElo "2126"]
[Result "1-0"]
[Round "01"]
[TimeControl "180+1"]
[Date "2022.11.08"]
[WhiteClock "0:02:19"]
[BlackClock "0:00:19"]

1. e4 {[%clk 0:03:00]}  c5 {[%clk 0:02:39]} 2. Nf3 {[%clk 0:02:59]}  e6 {[%clk 0:02:39]} 3. d4 {[%clk 0:02:58]}  cxd4 {[%clk 0:02:38]} 4. Nxd4 {[%clk 0:02:59]}  Nc6 {[%clk 0:02:38]} 5. Nc3 {[%clk 0:02:58]}  Qc7 {[%clk 0:02:37]} 6. Be2 {[%clk 0:02:58]}  Nf6 {[%clk 0:02:35]} 7. O-O {[%clk 0:02:58]}  Be7 {[%clk 0:02:34]} 8. Be3 {[%clk 0:02:56]}  a6 {[%clk 0:02:34]} 9. f4 {[%clk 0:02:57]}  d6 {[%clk 0:02:34]} 10. g4 {[%clk 0:02:55]}  h6 {[%clk 0:01:59]} 11. Bf3 {[%clk 0:02:50]}  e5 {[%clk 0:01:49]} 12. Nf5 {[%clk 0:02:41]}  Bxf5 {[%clk 0:01:48]} 13. exf5 {[%clk 0:02:41]}  O-O-O {[%clk 0:01:41]} 14. Nd5 {[%clk 0:02:39]}  Nxd5 {[%clk 0:01:41]} 15. Bxd5 {[%clk 0:02:39]}  Bf6 {[%clk 0:01:39]} 16. c3 {[%clk 0:02:36]}  Kb8 {[%clk 0:01:38]} 17. Qb3 {[%clk 0:02:35]}  Rd7 {[%clk 0:01:19]} 18. Bb6 {[%clk 0:02:31]}  Qc8 {[%clk 0:01:19]} 19. Rae1 {[%clk 0:02:31]}  Rf8 {[%clk 0:01:17]} 20. Re4 {[%clk 0:02:29]}  exf4 {[%clk 0:01:13]} 21. Rc4 {[%clk 0:02:28]}  Be5 {[%clk 0:00:58]} 22. Bf2 {[%clk 0:02:27]}  Rc7 {[%clk 0:00:42]} 23. Qb6 {[%clk 0:02:26]}  Ka8 {[%clk 0:00:23]} 24. Rxc6 {[%clk 0:02:20]}  bxc6 {[%clk 0:00:22]} 25. Bxc6+ {[%clk 0:02:20]}  Rxc6 {[%clk 0:00:19]} 26. Qa7# {[%clk 0:02:19]} 1-0


[Site "https://www.chess.com"]